lending/lending_fUSD_20250621
["ID","MTS","AMOUNT","RATE_DAILY","PERIOD"]
[366844566,1750505446809,-309.225452,0.00023534,7]
[366844567,1750505446819,-309.225452,0.00023534,7]
[366844568,1750505446828,-309.225452,0.00023534,7]
[366844569,1750505446837,-309.225452,0.00023534,7]
[366844570,1750505446846,-151.0,0.00023534,7]
[366844571,1750505446856,-151.0,0.00023534,7]
[366844572,1750505446866,-151.0,0.00023534,7]
[366844573,1750505446875,-237.350055,0.00023534,7]
[366844574,1750505446884,-202.147569,0.00023534,7]
[366844575,1750505446894,-151.0,0.00023534,7]
[366844576,1750505446903,-151.0,0.00023534,7]
[366844577,1750505446913,-151.0,0.00023534,7]
[366844578,1750505446922,-151.0,0.00023534,7]
[366844579,1750505446931,-151.0,0.00023534,7]
[366844580,1750505446941,-169.005465,0.00023534,7]
[366844581,1750505446951,-169.005465,0.00023534,7]
[366844582,1750505446960,-169.005465,0.00023534,7]
[366844583,1750505446969,-169.005465,0.00023534,7]
[366844584,1750505446979,-151.0,0.00023534,7]
[366844585,1750505446988,-151.0,0.00023534,7]
[366844586,1750505446997,-151.0,0.00023534,7]
[366844587,1750505447007,-699.674899,0.00023534,7]
[366844588,1750505447016,-699.674899,0.00023534,7]
[366844589,1750505447026,-699.674899,0.00023534,7]
[366844590,1750505447036,-699.674899,0.00023534,7]
[366844591,1750505447045,-151.0,0.00023534,7]
[366844592,1750505447054,-151.0,0.00023534,7]
[366844593,1750505447064,-151.0,0.00023534,7]
[366844594,1750505447073,-151.0,0.00023534,7]
[366844595,1750505447083,-151.0,0.00023534,7]
[366844596,1750505447092,-151.0,0.00023534,7]
[366844597,1750505447101,-151.0,0.00023534,7]
[366844598,1750505447111,-151.0,0.00023534,7]
[366844599,1750505447120,-1491.36060215,0.00023546,2]
[366844600,1750505447130,-427.19754129,0.0002357,2]
[366844601,1750505447139,-300.0,0.00023589,2]
[366844602,1750505447148,-1446.83314985,0.00023597,2]
[366844603,1750505447158,-154.56,0.00023608,2]
[366844604,1750505447167,-427.19754129,0.00023669,2]
[366844605,1750505447177,-176.96721,0.0002367,2]
[366844606,1750505447186,-1491.36060215,0.00023676,2]
[366844607,1750505447196,-427.19754129,0.00023769,2]
[366844608,1750505447205,-1446.83314985,0.00023771,2]
[366844609,1750505447215,-166.83,0.00023775,2]
[366844610,1750505447224,-1491.36060215,0.00023806,2]
[366844611,1750505447234,-393.73,0.00023836,2]
[366844612,1750505447243,-359.0,0.00023852,2]
[366844613,1750505447253,-427.19754129,0.00023869,2]
[366844614,1750505447263,-1000.0,0.00023873,2]
[366844615,1750505447272,-1491.36060215,0.00023936,2]
[366844616,1750505447281,-1446.83314985,0.00023945,2]
[366844617,1750505447291,-427.19754129,0.00023969,2]
[366844618,1750505447300,-163.58,0.00023974,2]
[366844619,1750505447309,-163.58,0.00023974,2]
[366844620,1750505447319,-163.58,0.00023974,2]
[366844621,1750505447328,-163.58,0.00023974,2]
[366844622,1750505447337,-326.98,0.00023974,2]
[366844623,1750505447347,-500.0,0.00023974,2]
[366844624,1750505447357,-500.0,0.00023974,2]
[366844625,1750505447367,-500.0,0.00023974,2]
[366844626,1750505447376,-500.0,0.00023974,2]
[366844627,1750505447386,-500.0,0.00023974,2]
[366844628,1750505447395,-500.0,0.00023974,2]
[366844629,1750505447405,-500.0,0.00023974,2]
[366844630,1750505447414,-500.0,0.00023974,2]
[366844631,1750505447424,-500.0,0.00023974,2]
[366844632,1750505447434,-500.0,0.00023974,2]
[366844633,1750505447443,-500.0,0.00023974,2]
[366844634,1750505447452,-500.0,0.00023974,2]
[366844635,1750505447462,-500.0,0.00023974,2]
[366844636,1750505447471,-500.0,0.00023974,2]
[366844637,1750505447480,-500.0,0.00023974,2]
[366844638,1750505447489,-500.0,0.00023974,2]
[366844639,1750505447498,-500.0,0.00023974,2]
[366844640,1750505447508,-500.0,0.00023974,2]
[366844641,1750505447517,-640.0,0.00023974,2]
[366844642,1750505447526,-151.0,0.00023974,7]
[366844643,1750505447536,-151.0,0.00023974,7]
[366844644,1750505447545,-214.53069,0.00023974,7]
[366844645,1750505447555,-214.53069,0.00023974,7]
[366844646,1750505447565,-151.0,0.00023974,7]
[366844647,1750505447574,-309.225452,0.00023974,7]
[366844648,1750505447584,-309.225452,0.00023974,7]
[366844649,1750505447593,-151.0,0.00023974,7]
[366844650,1750505447603,-151.0,0.00023974,7]
[366844651,1750505447814,-151.0,0.00023974,7]
[366844652,1750505447824,-169.005465,0.00023974,7]
[366844653,1750505447833,-169.005465,0.00023974,7]
[366844654,1750505447843,-151.0,0.00023974,7]
[366844655,1750505447852,-258.746176,0.00023974,7]
[366844656,1750505447861,-699.674899,0.00023974,7]
[366844657,1750505447871,-699.674899,0.00023974,7]
[366844658,1750505447880,-151.0,0.00023974,7]
[366844659,1750505447889,-151.0,0.00023974,7]
[366844660,1750505447899,-151.0,0.00023974,7]
[366844661,1750505447908,-151.0,0.00023974,7]
[366844662,1750505447918,-151.0,0.00023974,7]
[366844663,1750505447927,-151.0,0.00023974,7]
[366844664,1750505447937,-151.0,0.00023974,7]
[366844665,1750505447946,-151.0,0.00023974,7]
[366844666,1750505447955,-151.0,0.00023974,7]
[366844667,1750505447965,-151.0,0.00023974,7]
[366844668,1750505447975,-2056.583946,0.00023974,7]
[366844669,1750505447984,-2056.583946,0.00023974,7]
[366844670,1750505447993,-151.0,0.00023974,7]
[366844671,1750505448002,-151.0,0.00023974,7]
[366844672,1750505448011,-151.0,0.00023974,7]
[366844673,1750505448021,-202.972057,0.00023974,7]
[366844674,1750505448031,-202.972057,0.00023974,7]
[366844675,1750505448040,-151.737867,0.00023974,7]
[366844676,1750505448049,-151.0,0.00023974,7]
[366844677,1750505448059,-151.0,0.00023974,7]
[366844678,1750505448068,-151.564438,0.00023974,7]
[366844679,1750505448078,-151.0,0.00023974,7]
[366844680,1750505448087,-151.0,0.00023974,7]
[366844681,1750505448097,-801.224,0.00023974,5]
[366844682,1750505448106,-718.279746,0.00023974,7]
[366844683,1750505448115,-718.279746,0.00023974,7]
[366844684,1750505448124,-151.0,0.00023974,7]
[366844685,1750505448134,-151.0,0.00023974,7]
[366844686,1750505448143,-151.0,0.00023974,7]
[366844687,1750505448152,-151.0,0.00023974,7]
[366844688,1750505448161,-151.0,0.00023974,7]
[366844689,1750505448171,-151.0,0.00023974,7]
[366844690,1750505448180,-151.0,0.00023974,7]
[366844691,1750505448189,-151.333922,0.00023974,7]
[366844692,1750505448199,-182.860966,0.00023974,7]
[366844693,1750505448208,-182.860966,0.00023974,7]
[366844694,1750505448217,-336.910037,0.00023974,7]
[366844695,1750505448227,-151.0,0.00023974,7]
[366844696,1750505448236,-336.910037,0.00023974,7]
[366844697,1750505448246,-151.0,0.00023974,7]
[366844698,1750505448255,-278.699649,0.00023974,7]
[366844699,1750505448264,-278.699649,0.00023974,7]
[366844700,1750505448274,-375.348405,0.00023974,7]
[366844701,1750505448283,-375.348405,0.00023974,7]
[366844702,1750505448292,-151.0,0.00023974,7]
[366844703,1750505448301,-498.27959963,0.00024,2]
[366844704,1750505448311,-750.81041459,0.00024003,10]
[366844705,1750505448320,-1491.36060215,0.00024067,2]
[366844706,1750505448330,-427.19754129,0.00024069,2]
[366844707,1750505448339,-300.0,0.00024071,2]
[366844708,1750505448348,-1595.02,0.00024075,2]
[366844709,1750505448357,-1446.83314985,0.0002412,2]
[366844710,1750505448367,-427.19754129,0.00024169,2]
[366844711,1750505448376,-176.96721,0.0002417,2]
[366844712,1750505448385,-388.82904543,0.00024181,2]
[366844713,1750505448395,-1491.36060215,0.00024197,2]
[366844714,1750505448404,-1626.0,0.000242,2]
[366844715,1750505448413,-156.587,0.0002422,2]
[366844716,1750505448423,-215.0738,0.0002422,2]
[366844717,1750505448432,-687.6136,0.00024248,2]
[366844718,1750505448441,-427.19754129,0.00024268,2]
[366844719,1750505448450,-1446.83314985,0.00024294,2]
[366844720,1750505448459,-1491.36060215,0.00024327,2]
[366844721,1750505448468,-390.8,0.00024362,2]
[366844722,1750505448478,-427.19754129,0.00024368,2]
[366844723,1750505448487,-800.0,0.000244,8]
[366844724,1750505448496,-151.0,0.000244,7]
[366844725,1750505448505,-151.0,0.000244,7]
[366844726,1750505448514,-151.0,0.000244,7]
[366844727,1750505448523,-251.336629,0.000244,7]
[366844728,1750505448534,-151.0,0.000244,7]
[366844729,1750505448546,-151.0,0.000244,7]
[366844730,1750505448555,-11605.98,0.000244,2]
[366844731,1750505448565,-151.0,0.000244,7]
[366844732,1750505448575,-858.352628,0.000244,7]
[366844733,1750505448589,-858.352628,0.000244,7]
[366844734,1750505448598,-305.996904,0.000244,7]
[366844735,1750505448607,-305.996904,0.000244,7]
[366844736,1750505448619,-151.0,0.000244,7]
[366844737,1750505448628,-151.0,0.000244,7]
[366844738,1750505448638,-151.0,0.000244,7]
[366844739,1750505448647,-151.0,0.000244,7]
[366844740,1750505448658,-154.56,0.00024404,2]
[366844741,1750505448667,-168.0,0.0002444,2]
[366844742,1750505448677,-1491.36060215,0.00024457,2]
[366844743,1750505448687,-1446.83314985,0.00024468,2]
[366844744,1750505448696,-427.19754129,0.00024468,2]
[366844745,1750505448706,-2000.0,0.00024491,2]
[366844746,1750505448716,-1600.0,0.000245,8]
[366844747,1750505448726,-150.0,0.00024502,2]
[366844748,1750505448736,-191.0,0.00024559,2]
[366844749,1750505448746,-5000.0,0.00024568,2]
[366844750,1750505448756,-151.0,0.00024568,7]
[366844751,1750505448765,-427.19754129,0.00024568,2]
[366844752,1750505448774,-151.0,0.00024569,7]
[366844753,1750505448784,-151.0,0.00024569,7]
[366844754,1750505448793,-151.0,0.00024569,7]
[366844755,1750505448803,-151.0,0.00024569,7]
[366844756,1750505448813,-2056.583946,0.00024573,7]
[366844757,1750505448822,-2056.583946,0.00024573,7]
[366844758,1750505448832,-158.81828784,0.00024577,2]
[366844759,1750505448841,-163.6784675,0.00024577,4]
[366844760,1750505448850,-1193.74875718,0.00024577,2]
[366844761,1750505448859,-9274.23843976,0.00024577,2]
[366844762,1750505448868,-3507.14220742,0.00024577,2]
[366844763,1750505448878,-517.43440804,0.00024577,2]
[366844764,1750505448888,-1000.0,0.00024581,2]
[366844765,1750505448897,-1491.36060215,0.00024587,2]
[366844766,1750505448907,-750.81041459,0.0002459,11]
[366844767,1750505448916,-2400.0,0.000246,8]
[366844768,1750505448926,-300.0,0.00024619,2]
[366844769,1750505448936,-150.0,0.0002463,2]
[366844770,1750505448945,-151.0,0.00024657,7]
[366844771,1750505448955,-202.972057,0.00024657,7]
[366844772,1750505448964,-202.972057,0.00024657,7]
[366844773,1750505448973,-151.0,0.00024657,7]
[366844774,1750505448983,-151.0,0.00024657,7]
[366844775,1750505448992,-151.0,0.00024657,7]
[366844776,1750505449002,-718.279746,0.00024657,7]
[366844777,1750505449011,-718.279746,0.00024657,7]
[366844778,1750505449020,-151.0,0.00024657,7]
[366844779,1750505449030,-151.0,0.00024657,7]
[366844780,1750505449039,-151.0,0.00024657,7]
[366844781,1750505449049,-151.0,0.00024657,7]
[366844782,1750505449058,-257.475179,0.00024657,7]
[366844783,1750505449068,-221.729117,0.00024657,7]
[366844784,1750505449077,-151.0,0.00024657,7]
[366844785,1750505449087,-182.860966,0.00024657,7]
[366844786,1750505449097,-182.860966,0.00024657,7]
[366844787,1750505449107,-336.910037,0.00024657,7]
[366844788,1750505449117,-151.0,0.00024657,7]
[366844789,1750505449126,-336.910037,0.00024657,7]
[366844790,1750505449136,-278.699649,0.00024657,7]
[366844791,1750505449146,-278.699649,0.00024657,7]
[366844792,1750505449155,-375.348405,0.00024657,7]
[366844793,1750505449165,-375.348405,0.00024657,7]
[366844794,1750505449175,-151.0,0.00024657,7]
[366844795,1750505449185,-300.0,0.00024667,10]
[366844796,1750505449194,-300.0,0.00024667,10]
[366844797,1750505449203,-2177.38219523,0.00024668,2]
[366844798,1750505449213,-666.0,0.00024668,2]
[366844799,1750505449223,-666.0,0.00024668,2]
[366844800,1750505449231,-300.0,0.00024668,10]
[366844801,1750505449241,-330.71196817,0.00024668,2]
[366844802,1750505449251,-151.0,0.00024668,7]
[366844803,1750505449260,-151.0,0.00024668,7]
[366844804,1750505449269,-151.0,0.00024668,7]
[366844805,1750505449279,-151.0,0.00024668,7]
[366844806,1750505449288,-151.0,0.00024668,7]
[366844807,1750505449299,-151.0,0.00024668,7]
[366844808,1750505449308,-151.0,0.00024668,7]
[366844809,1750505449319,-151.0,0.00024668,7]
[366844810,1750505449328,-151.0,0.00024668,7]
[366844811,1750505449337,-151.349658,0.00024668,7]
[366844812,1750505449347,-151.0,0.00024668,7]
[366844813,1750505449357,-151.0,0.00024668,7]
[366844814,1750505449367,-151.0,0.00024668,7]
[366844815,1750505449377,-151.0,0.00024668,7]
[366844816,1750505449386,-151.0,0.00024668,7]
[366844817,1750505449396,-151.0,0.00024668,7]
[366844818,1750505449405,-151.0,0.00024668,7]
[366844819,1750505449414,-151.0,0.00024668,7]
[366844820,1750505449424,-151.0,0.00024668,7]
[366844821,1750505449434,-858.352628,0.00024668,7]
[366844822,1750505449443,-858.352628,0.00024668,7]
[366844823,1750505449452,-858.352628,0.00024668,7]
[366844824,1750505449461,-858.352628,0.00024668,7]
[366844825,1750505449472,-305.996904,0.00024668,7]
[366844826,1750505449483,-305.996904,0.00024668,7]
[366844827,1750505449494,-305.996904,0.00024668,7]
[366844828,1750505449505,-305.996904,0.00024668,7]
[366844829,1750505449515,-151.0,0.00024668,7]
[366844830,1750505449526,-151.0,0.00024668,7]
[366844831,1750505449536,-151.0,0.00024669,7]
[366844832,1750505449546,-151.0,0.00024669,7]
[366844833,1750505449556,-152.299361,0.00024669,7]
[366844834,1750505449565,-151.0,0.00024669,7]
[366844835,1750505449574,-151.0,0.00024669,7]
[366844836,1750505449583,-151.0,0.00024669,7]
[366844837,1750505449592,-151.0,0.00024669,7]
[366844838,1750505449601,-151.0,0.00024669,7]
[366844839,1750505449611,-151.0,0.00024669,7]
[366844840,1750505449621,-151.0,0.00024669,7]
[366844841,1750505449631,-151.0,0.00024669,7]
[366844842,1750505449640,-151.0,0.00024669,7]
[366844843,1750505449650,-151.0,0.00024669,7]
[366844844,1750505449659,-151.0,0.00024669,7]
[366844845,1750505449669,-151.786999,0.00024669,7]
[366844846,1750505449679,-151.0,0.00024669,7]
[366844847,1750505449688,-151.0,0.00024669,7]
[366844848,1750505449698,-152.281482,0.00024669,7]
[366844849,1750505449708,-151.0,0.00024669,7]
[366844850,1750505449717,-204.062483,0.00024669,7]
[366844851,1750505449727,-204.062483,0.00024669,7]
[366844852,1750505449737,-151.0,0.00024669,7]
[366844853,1750505449747,-151.0,0.00024669,7]
[366844854,1750505449757,-151.0,0.00024669,7]
[366844855,1750505449767,-151.0,0.00024669,7]
[366844856,1750505449776,-151.0,0.00024669,7]
[366844857,1750505449785,-151.0,0.00024669,7]
[366844858,1750505449795,-151.0,0.00024669,7]
[366844859,1750505449804,-151.0,0.00024669,7]
[366844860,1750505449814,-151.0,0.00024669,7]
[366844861,1750505449823,-1306.783816,0.00024669,7]
[366844862,1750505449832,-1306.783816,0.00024669,7]
[366844863,1750505449842,-1306.783816,0.00024669,7]
[366844864,1750505449851,-1306.783816,0.00024669,7]
[366844865,1750505449860,-1306.783816,0.00024669,7]
[366844866,1750505449869,-1306.783816,0.00024669,7]
[366844867,1750505449879,-151.657771,0.00024669,7]
[366844868,1750505449889,-304.395109,0.00024669,7]
[366844869,1750505449898,-304.395109,0.00024669,7]
[366844870,1750505449907,-304.395109,0.00024669,7]
[366844871,1750505449917,-304.395109,0.00024669,7]
[366844872,1750505449926,-151.0,0.00024669,7]
[366844873,1750505449936,-151.0,0.00024669,7]
[366844874,1750505449945,-151.0,0.00024669,7]
[366844875,1750505449954,-151.0,0.00024669,7]
[366844876,1750505449964,-151.0,0.00024669,7]
[366844877,1750505449974,-151.0,0.00024669,7]
[366844878,1750505449983,-151.0,0.00024669,7]
[366844879,1750505449994,-151.0,0.00024669,7]
[366844880,1750505450005,-214.53069,0.00024669,7]
[366844881,1750505450015,-214.53069,0.00024669,7]
[366844882,1750505450027,-214.53069,0.00024669,7]
[366844883,1750505450038,-214.53069,0.00024669,7]
[366844884,1750505450047,-151.0,0.00024669,7]
[366844885,1750505450056,-309.225452,0.00024669,7]
[366844886,1750505450065,-309.225452,0.00024669,7]
[366844887,1750505450075,-151.0,0.00024669,7]
[366844888,1750505450084,-151.0,0.00024669,7]
[366844889,1750505450093,-151.0,0.00024669,7]
[366844890,1750505450102,-169.005465,0.00024669,7]
[366844891,1750505450112,-169.005465,0.00024669,7]
[366844892,1750505450122,-151.0,0.00024669,7]
[366844893,1750505450131,-699.674899,0.00024669,7]
[366844894,1750505450140,-699.674899,0.00024669,7]
[366844895,1750505450149,-151.0,0.00024669,7]
[366844896,1750505450158,-151.0,0.00024669,7]
[366844897,1750505450167,-151.0,0.00024669,7]
[366844898,1750505450175,-151.0,0.00024669,7]
[366844899,1750505450184,-151.0,0.00024669,7]
[366844900,1750505450194,-151.0,0.00024669,7]
[366844901,1750505450207,-151.0,0.00024669,7]
[366844902,1750505450218,-151.628351,0.00024669,7]
[366844903,1750505450227,-151.0,0.00024669,7]
[366844904,1750505450236,-151.0,0.00024669,7]
[366844905,1750505450246,-151.0,0.00024669,7]
[366844906,1750505450258,-1908.26537402,0.0002467,2]
[366844907,1750505450267,-176.96721,0.0002467,2]
[366844908,1750505450276,-500.0,0.00024673,2]
[366844909,1750505450286,-160.16612759,0.00024673,2]
[366844910,1750505450295,-500.0,0.00024673,2]
[366844911,1750505450304,-160.16947023,0.00024673,2]
[366844912,1750505450314,-500.0,0.00024673,2]
[366844913,1750505450324,-32595.03694225,0.00024676,5]
[366844914,1750505450333,-193689.13342346,0.00024676,5]
[366844916,1750505488514,99.10025014,0.00013699,2]
[366844917,1750505488538,139.43974986,0.00013699,2]
[366844918,1750505667130,218.26,0.00013699,2]
[366844919,1750505699351,-300.0,0.00018069,2]
[366844920,1750505699375,-27770.74161589,0.0001807,2]
[366844921,1750505705099,1200.0,0.00018069,2]
[366844926,1750506002350,1002.0,0.00024657,120]
[366844932,1750506174385,250.0,0.00015,2]
[366844948,1750506506934,226.61,0.00013699,2]
[366844957,1750506632440,-500.0,0.00019035,2]
[366844958,1750506632450,-95.33220285,0.00019035,2]
[366844998,1750506633199,-204.66779715,0.00019035,2]
[366845000,1750506633209,-153.88942636,0.00019035,2]
[366845001,1750506633219,-136.1395564,0.00019877,2]
[366845003,1750506633231,-363.8604436,0.00019877,2]
[366845005,1750506633241,-300.0,0.00019877,2]
[366845007,1750506633251,-284.01267497,0.00019898,2]
[366845009,1750506633261,-193.81964228,0.00019998,2]
[366845011,1750506633274,-1006.18035772,0.00019998,2]
[366845013,1750506633284,-153.88942636,0.00019999,2]
[366845015,1750506633294,-300.0,0.00019999,2]
[366845017,1750506633304,-550.0,0.00019999,2]
[366845019,1750506633314,-593.32664271,0.0002,2]
[366845021,1750506633323,-3006.48730497,0.0002,7]
[366845022,1750506633332,-150.0,0.0002,5]
[366845024,1750506633343,-249.5,0.0002,2]
[366845026,1750506633353,-304.13,0.0002,2]
[366845028,1750506633362,-248.41,0.0002,2]
[366845030,1750506633372,-248.58,0.0002,2]
[366845032,1750506633381,-301.11,0.0002,2]
[366845034,1750506633391,-251.83,0.0002,2]
[366845036,1750506633401,-248.15,0.0002,2]
[366845037,1750506633411,-301.29,0.0002,2]
[366845039,1750506633421,-253.66,0.0002,2]
[366845041,1750506633431,-305.41,0.0002,2]
[366845043,1750506633441,-251.48,0.0002,2]
[366845045,1750506633451,-254.02,0.0002,2]
[366845047,1750506633461,-305.17,0.0002,2]
[366845049,1750506633471,-226.61,0.00020187,2]
[366845051,1750506633481,-245.69,0.00020195,2]
[366845053,1750506633494,-301.43,0.00020202,2]
[366845054,1750506633508,-252.28,0.00020216,2]
[366845056,1750506633517,-2500.0,0.00020236,2]
[366845058,1750506633528,-248.68,0.00020284,2]
[366845060,1750506633537,-247.07,0.00020442,2]
[366845062,1750506633547,-254.26,0.00020442,2]
[366845064,1750506633557,-2500.0,0.00020668,2]
[366845066,1750506633566,-303.71,0.00020696,2]
[366845068,1750506633576,-201.0,0.00020734,2]
[366845070,1750506633586,-342.44614232,0.00020795,2]
[366845072,1750506633596,-5470.82,0.0002101,2]
[366845074,1750506633605,-2400.35,0.00021031,2]
[366845075,1750506633615,-582.72,0.0002123,2]
[366845077,1750506633624,-582.72,0.00021236,2]
[366845078,1750506633634,-582.72,0.00021242,2]
[366845079,1750506633645,-582.72,0.00021247,2]
[366845080,1750506633655,-582.72,0.00021253,2]
[366845081,1750506633664,-582.72,0.00021258,2]
[366845082,1750506633674,-582.72,0.00021264,2]
[366845083,1750506633683,-582.72,0.0002127,2]
[366845084,1750506633693,-582.72,0.00021275,2]
[366845085,1750506633702,-582.72,0.00021281,2]
[366845086,1750506633712,-582.72,0.00021286,2]
[366845087,1750506633722,-582.72,0.00021292,2]
[366845088,1750506633731,-582.72,0.00021298,2]
[366845089,1750506633742,-582.72,0.00021303,2]
[366845090,1750506633752,-582.72,0.00021309,2]
[366845091,1750506633762,-582.72,0.00021314,2]
[366845092,1750506633771,-582.72,0.0002132,2]
[366845093,1750506633781,-582.72,0.00021326,2]
[366845094,1750506633791,-582.72,0.00021331,2]
[366845095,1750506633801,-582.72,0.00021337,2]
[366845096,1750506633811,-200.0,0.00021366,2]
[366845097,1750506633821,-1475.64,0.00021376,2]
[366845098,1750506633831,-7305.12,0.00021548,2]
[366845099,1750506633840,-150.0,0.00021564,2]
[366845100,1750506633850,-2751.0,0.00021581,2]
[366845101,1750506633860,-161.9,0.00021631,2]
[366845102,1750506633871,-480.0,0.0002188,2]
[366845103,1750506633881,-929.77,0.00021894,2]
[366845104,1750506633891,-2503.22,0.00021957,2]
[366845105,1750506633900,-151.0,0.00021979,2]
[366845106,1750506633910,-151.0,0.00021979,2]
[366845107,1750506633921,-151.0,0.00021979,2]
[366845108,1750506633931,-151.0,0.00021979,2]
[366845109,1750506633940,-151.0,0.00021979,2]
[366845110,1750506633950,-151.0,0.00021979,2]
[366845111,1750506633959,-209.84132819,0.00021979,2]
[366845112,1750506633969,-1000.0,0.00021991,2]
[366845113,1750506633978,-23900.0,0.00021992,2]
[366845114,1750506633988,-34375.7240115,0.00022,2]
[366845115,1750506634001,-842.48560231,0.00022,2]
[366845116,1750506634013,-51807.79038619,0.00022,2]
[366845117,1750506634023,-5695.86,0.00022042,2]
[366845118,1750506634034,-1495.95,0.00022064,2]
[366845119,1750506634044,-834.26476573,0.00022075,2]
[366845120,1750506634055,-305.64,0.00022124,2]
[366845121,1750506634066,-248.21,0.00022124,2]
[366845122,1750506634077,-251.33,0.00022124,2]
[366845123,1750506634087,-301.64,0.00022124,2]
[366845124,1750506634097,-252.43,0.00022124,2]
[366845125,1750506634107,-252.15,0.00022124,2]
[366845126,1750506634118,-300.62,0.00022124,2]
[366845127,1750506634128,-1796.84,0.00022151,2]
[366845128,1750506634138,-201.0,0.00022188,4]
[366845129,1750506634147,-525.5672903,0.000222,6]
[366845130,1750506634156,-525.56729021,0.000222,6]
[366845131,1750506634167,-525.56729021,0.000222,6]
[366845132,1750506634177,-525.56729021,0.000222,6]
[366845133,1750506634187,-2500.0,0.00022206,2]
[366845134,1750506634198,-300.0,0.00022206,2]
[366845135,1750506634209,-166.77,0.00022211,2]
[366845136,1750506634220,-238.62,0.00022212,2]
[366845137,1750506634230,-2070.44296265,0.00022228,2]
[366845138,1750506634240,-946.0,0.00022238,2]
[366845139,1750506634509,-3335.0,0.00022238,2]
[366845140,1750506634519,-803.0,0.00022238,2]
[366845141,1750506634529,-638.0,0.00022238,2]
[366845142,1750506634538,-1161.0,0.00022238,2]
[366845143,1750506634548,-928.0,0.00022238,2]
[366845144,1750506634557,-559.0,0.00022238,2]
[366845145,1750506634567,-1278.0,0.00022238,2]
[366845146,1750506634577,-591.0,0.00022238,2]
[366845147,1750506634586,-2005.0,0.00022238,2]
[366845148,1750506634597,-1676.0,0.00022238,2]
[366845149,1750506634608,-4095.0,0.00022238,2]
[366845150,1750506634619,-178.746,0.00022238,2]
[366845151,1750506634630,-855.0,0.00022238,2]
[366845152,1750506634641,-525.56729021,0.00022245,6]
[366845153,1750506634652,-5076.51,0.00022248,2]
[366845154,1750506634663,-729.13,0.00022249,2]
[366845155,1750506634673,-1577.74,0.00022251,2]
[366845156,1750506634683,-666.0,0.00022268,2]
[366845157,1750506634694,-200.0,0.00022269,2]
[366845158,1750506634706,-1000.0,0.00022288,2]
[366845159,1750506634717,-9379.5,0.00022323,2]
[366845160,1750506634728,-4034.4,0.00022384,2]
[366845161,1750506634739,-675.1,0.00022388,2]
[366845162,1750506634750,-250.0,0.00022431,2]
[366845163,1750506634761,-200.908427,0.000227,2]
[366845164,1750506634772,-1389.37864768,0.00022731,2]
[366845165,1750506634783,-30336.6665,0.00022792,2]
[366845166,1750506634792,-525.56729021,0.00022831,8]
[366845167,1750506634801,-151.0,0.00022851,2]
[366845168,1750506634811,-245.24164015,0.00022851,2]
[366845169,1750506634820,-693.3919763,0.00022851,2]
[366845170,1750506634829,-207.4,0.00022851,2]
[366845171,1750506634839,-1389.37864763,0.00022937,2]
[366845172,1750506634848,-200.0,0.00023,2]
[366845173,1750506634857,-1389.37864763,0.00023143,2]
[366845174,1750506634867,-525.56729021,0.00023417,9]